bitfinex/quotes_SOLUSD_20241022
["timestamp","ask_amount","ask_price","bid_price","bid_amount"]
[1729640557170,5.9601,167.78,167.71,21.8899741]
[1729640557400,5.9601,167.78,167.72,23.776884]
[1729640559186,5.9601,167.78,167.71,23.776884]
[1729640560976,5.9601,167.78,167.7,45.6668581]
[1729640568779,20.0,167.81,167.7,45.6668581]
[1729640568980,20.0,167.79,167.69,15.9566]
[1729640569372,5.9618,167.74,167.69,15.9566]
[1729640583009,20.0,167.77,167.65,22.3465]
[1729640583332,5.9629,167.71,167.65,22.3465]
[1729640584108,5.9623,167.72,167.65,22.3465]
[1729640597533,5.9633,167.7,167.62,20.0]
[1729640597739,5.9633,167.7,167.62,41.8899741]
[1729640601951,5.9635,167.69,167.62,20.0]
[1729640602246,20.0,167.72,167.62,20.0]
[1729640602426,5.9636,167.69,167.62,20.0]
[1729640602738,5.9638,167.68,167.62,20.0]
[1729640608146,5.9634,167.69,167.62,41.8899741]
[1729640608731,5.9634,167.69,167.62,20.0]
[1729640610141,5.9629,167.71,167.64,21.8899741]
[1729640611147,5.9631,167.7,167.64,21.8899741]
[1729640618333,5.9631,167.7,167.63,21.8899741]
[1729640619748,14.07211778,167.71,167.64,21.8899741]
[1729640621056,14.07211778,167.71,167.63,45.6668581]
[1729640625543,14.07211778,167.71,167.64,21.8899741]
[1729640626951,14.07211778,167.71,167.63,45.6668581]
[1729640629244,5.9636,167.69,167.62,20.0]
[1729640629662,5.9641,167.67,167.61,15.8274]
[1729640632640,8.10931778,167.71,167.55,5.06781571]
[1729640632641,5.965,167.65,167.57,37.5619741]
[1729640636867,5.965,167.65,167.57,15.672]
[1729640637751,5.9661,167.62,167.55,6.548]
[1729640638256,5.9661,167.62,167.55,28.4379741]
[1729640640448,14.9111,167.66,167.54,20.0]
[1729640640765,5.9661,167.62,167.55,21.8899741]
[1729640641459,5.9654,167.64,167.55,21.8899741]
[1729640641660,5.9654,167.64,167.56,21.8899741]
[1729640641854,5.9651,167.64,167.55,21.8899741]
[1729640642164,5.9658,167.63,167.55,21.8899741]
[1729640642343,20.0,167.65,167.59,21.8899741]
[1729640642546,5.9649,167.65,167.59,21.8899741]
[1729640642743,5.9649,167.65,167.58,21.8899741]
[1729640657470,22.4604,167.69,167.56,6.548]
[1729640657700,5.966,167.62,167.54,20.0]
[1729640657989,43.776884,167.66,167.53,37.5619741]
[1729640658152,5.9662,167.61,167.53,37.5619741]
[1729640660956,5.9662,167.61,167.53,15.672]
[1729640661862,5.9662,167.61,167.53,37.5619741]
[1729640662664,16.5169,167.63,167.53,15.672]
[1729640662879,5.9667,167.6,167.53,37.5619741]
[1729640665367,20.0,167.59,167.53,15.672]
[1729640665573,5.9672,167.59,167.53,15.672]
[1729640666563,28.64684262,167.62,167.49,15.2803]
[1729640666771,5.9676,167.57,167.5,21.8899741]
[1729640667285,5.9682,167.56,167.49,15.2803]
[1729640667487,0.1,167.58,167.48,0.6280284]
[1729640667789,5.9687,167.54,167.48,0.6280284]
[1729640668490,40.888,167.56,167.48,0.6280284]
[1729640668795,5.9693,167.53,167.48,0.6280284]
[1729640669167,5.9687,167.55,167.48,0.6280284]
[1729640670200,20.0,167.56,167.48,0.6280284]
[1729640670505,5.9688,167.54,167.48,0.6280284]
[1729640670876,20.0,167.56,167.48,0.6280284]
[1729640671076,5.9688,167.54,167.48,0.6280284]
[1729640671978,20.0,167.56,167.48,0.6280284]
[1729640672179,25.9681,167.56,167.48,0.6280284]
[1729640672584,5.9683,167.55,167.48,0.6280284]
[1729640677095,5.9683,167.55,167.48,22.5180025]
[1729640677484,5.9683,167.55,167.48,0.6280284]
[1729640690508,5.9688,167.54,167.48,0.6280284]
[1729640691011,5.9691,167.53,167.48,0.6280284]
[1729640691383,5.9687,167.54,167.48,0.6280284]
[1729640691703,5.9691,167.53,167.48,0.6280284]
[1729640694790,5.9687,167.55,167.48,0.6280284]
[1729640695088,5.9687,167.54,167.48,11.57301545]
[1729640695393,5.9687,167.54,167.48,0.6280284]
[1729640698493,20.0,167.58,167.48,22.5180025]
[1729640698815,20.0,167.58,167.48,0.6280284]
[1729640699111,5.9687,167.54,167.48,0.6280284]
[1729640702310,20.0,167.53,167.48,0.6280284]
[1729640702511,5.9698,167.51,167.48,0.6280284]
[1729640704100,5.9695,167.52,167.48,0.6280284]
[1729640704420,5.9697,167.52,167.48,0.6280284]
[1729640704719,0.1,167.55,167.48,0.6280284]
[1729640705420,5.97,167.51,167.48,0.6280284]
[1729640706402,20.0,167.53,167.48,0.6280284]
[1729640706605,5.9704,167.5,167.48,0.6280284]
[1729640713222,20.0,167.5,167.48,0.6280284]
[1729640714126,20.0,167.53,167.48,0.6280284]
[1729640714306,25.9701,167.5,167.48,0.6280284]
[1729640722736,25.9705,167.49,167.48,0.6280284]
[1729640726835,20.0,167.53,167.48,0.6280284]
[1729640727022,24.77908772,167.56,167.48,0.6280284]
[1729640727023,15.0203,167.56,167.48,0.6280284]
[1729640727217,14.9203,167.56,167.48,0.6280284]
[1729640728134,30.87184288,167.58,167.51,21.8899741]
[1729640728135,6.16832739,167.58,167.51,21.8899741]
[1729640728331,5.9676,167.57,167.51,21.8899741]
[1729640728526,5.9676,167.57,167.5,28.4312741]
[1729640729117,5.9691,167.53,167.5,6.5413]
[1729640729419,14.9173,167.59,167.48,22.5180025]
[1729640729619,5.9683,167.56,167.48,22.5180025]
[1729640729815,20.0,167.55,167.49,21.8899741]
[1729640730235,20.0,167.55,167.5,21.8899741]
[1729640733019,5.9662,167.61,167.51,38.2609741]
[1729640733218,21.03502243,167.62,167.51,38.2609741]
[1729640733735,5.9674,167.58,167.52,21.8899741]
[1729640735036,20.0,167.6,167.54,21.8899741]
[1729640735333,14.51274262,167.62,167.57,21.8899741]
[1729640736118,5.9662,167.61,167.51,16.371]
[1729640736326,5.9671,167.59,167.51,38.2609741]
[1729640736640,8.54684262,167.62,167.51,38.2609741]
[1729640736941,20.0,167.61,167.51,16.371]
[1729640737141,5.9676,167.58,167.51,16.371]
[1729640737352,20.0,167.61,167.51,16.371]
[1729640737353,23.776884,167.6,167.51,16.371]
[1729640737562,20.0,167.57,167.51,16.371]
[1729640737927,5.968,167.56,167.51,16.371]
[1729640738527,34.9182,167.58,167.51,16.371]
[1729640738730,5.9686,167.55,167.51,16.371]
[1729640741334,5.9687,167.54,167.48,0.6280284]
[1729640742340,5.9691,167.53,167.48,0.6280284]
[1729640742535,5.9697,167.52,167.48,0.6280284]
[1729640742736,34.9216,167.55,167.48,0.6280284]
[1729640742955,5.9698,167.51,167.48,0.6280284]
[1729640746050,5.9696,167.52,167.48,0.6280284]
[1729640758255,26.17318888,167.55,167.48,0.6280284]
[1729640758454,25.9705,167.49,167.48,0.6280284]
[1729640762461,5.9727,167.43,167.39,16.1891]
[1729640762965,24.25462404,167.48,167.39,16.1891]
[1729640762966,5.9737,167.4,167.39,16.1891]
[1729640763336,20.0,167.45,167.37,5.0]
[1729640763545,5.9744,167.38,167.37,5.0]
[1729640764552,20.0,167.43,167.37,5.0]
[1729640765163,5.973,167.42,167.37,5.0]
[1729640765358,5.9744,167.39,167.37,5.0]
[1729640768762,20.0,167.43,167.37,5.0]
[1729640769866,5.974,167.39,167.37,5.0]
[1729640770765,20.0,167.43,167.37,5.0]
[1729640770766,23.776884,167.42,167.37,5.0]
[1729640770985,5.9744,167.38,167.37,5.0]
[1729640771775,25.9744,167.38,167.37,5.0]
[1729640774902,25.9744,167.38,167.31,0.6280284]
[1729640774903,20.0,167.36,167.31,0.6280284]
[1729640775254,5.9765,167.32,167.31,0.6280284]
[1729640780477,5.9762,167.33,167.31,0.6280284]
[1729640781671,20.1,167.36,167.31,0.6280284]
[1729640781867,14.9369,167.37,167.31,0.6280284]
[1729640781868,5.9764,167.33,167.31,0.6280284]
[1729640785593,5.9758,167.34,167.31,0.6280284]
[1729640785870,5.9763,167.33,167.31,0.6280284]
[1729640801673,20.0,167.32,167.31,0.6280284]
[1729640808593,25.9765,167.32,167.31,0.6280284]
[1729640821981,25.9765,167.32,167.22,21.8899741]
[1729640821982,5.9797,167.24,167.21,15.0513]
[1729640822182,5.9787,167.26,167.21,15.0513]
[1729640823402,5.979,167.26,167.21,15.0513]
[1729640825491,35.0432,167.3,167.21,15.0513]
[1729640825691,5.9791,167.25,167.21,15.0513]
[1729640828408,5.9793,167.25,167.21,15.0513]
[1729640828790,6.1581,167.28,167.1,2.18092463]
[1729640828992,25.9826,167.15,167.05,16.3851]
[1729640829293,20.0,167.15,167.08,21.8899741]
[1729640830710,20.0,167.16,167.09,21.8899741]
[1729640830906,20.0,167.17,167.13,16.3851]
[1729640831111,20.0,167.18,167.13,16.3851]
[1729640831512,20.0,167.18,167.14,28.7414025]
[1729640831702,10.00959411,167.21,167.16,21.8899741]
[1729640831904,10.00959411,167.21,167.18,21.8899741]
[1729640832105,10.00959411,167.21,167.19,21.8899741]
[1729640832411,5.9787,167.26,167.2,38.2750741]
[1729640832614,5.9795,167.24,167.2,16.3851]
[1729640832929,5.9799,167.23,167.2,16.3851]
[1729640833090,5.9801,167.22,167.2,16.3851]
[1729640833905,5.9805,167.21,167.15,16.3851]
[1729640834110,5.9805,167.21,167.15,38.2750741]
[1729640834615,21.03630148,167.25,167.15,16.3851]
[1729640834917,20.0,167.23,167.15,16.3851]
[1729640835094,20.0,167.19,167.15,16.3851]
[1729640835294,5.9812,167.19,167.15,16.3851]
[1729640835494,20.0,167.23,167.15,16.3851]
[1729640835792,20.0,167.21,167.16,21.8899741]
[1729640836311,20.0,167.22,167.16,21.8899741]
[1729640836513,20.0,167.22,167.15,38.2750741]
[1729640836695,5.9805,167.21,167.15,16.3851]
[1729640837401,5.9807,167.21,167.15,16.3851]
[1729640837995,5.9822,167.17,167.14,16.4143284]
[1729640838193,15.1485,167.24,167.14,16.4143284]
[1729640838194,5.9805,167.21,167.14,16.4143284]
[1729640838410,20.0,167.21,167.14,16.4143284]
[1729640838616,5.9812,167.19,167.14,16.4143284]
[1729640839308,20.0,167.18,167.14,16.4143284]
[1729640839499,20.0,167.19,167.14,16.4143284]
[1729640839816,20.0,167.16,167.14,16.4143284]
[1729640841317,20.0,167.17,167.14,16.4143284]
[1729640841515,20.0,167.2,167.14,16.4143284]
[1729640841719,20.0,167.16,167.14,16.4143284]
[1729640842207,14.9516,167.21,167.14,16.4143284]
[1729640842415,5.9823,167.16,167.14,16.4143284]
[1729640843495,5.9854,167.08,166.99,15.7863]
[1729640843701,5.9854,167.08,167.01,21.8899741]
[1729640844313,5.9853,167.08,167.01,21.8899741]
[1729640845120,5.9855,167.07,167.01,21.8899741]
[1729640845324,5.9855,167.07,166.92,0.1]
[1729640845325,6.0874,167.02,166.87,0.1]
[1729640845514,6.0874,167.02,166.86,85.7863]
[1729640845515,0.1,167.02,166.97,21.8899741]
[1729640845699,0.1,167.01,166.96,21.8899741]
[1729640845898,0.1,167.01,166.95,10.94498705]
[1729640846324,6.0882,167.0,166.87,70.1]
[1729640846632,0.1,166.98,166.91,34.4633401]
[1729640847025,0.1,166.98,166.92,34.4633401]
[1729640847206,0.1,166.98,166.86,15.2863]
[1729640847408,0.1,166.98,166.93,34.4633401]
[1729640847719,0.1,166.98,166.93,33.4633401]
[1729640848219,0.1,166.98,166.88,34.4633401]
[1729640848220,0.1,166.98,166.92,34.4633401]
[1729640848423,0.1,167.0,166.93,34.4633401]
[1729640848617,0.1,166.99,166.95,34.4633401]
[1729640848803,0.1,166.99,166.94,34.4633401]
[1729640850430,0.1,166.99,166.95,34.4633401]
[1729640850613,0.1,166.99,166.94,34.4633401]
[1729640850809,0.1,166.99,166.96,34.4633401]
[1729640851016,0.1,166.99,166.95,34.4633401]
[1729640851604,0.1,166.97,166.93,34.4633401]
[1729640851804,0.1,166.97,166.91,34.4633401]
[1729640852022,20.0,166.98,166.93,34.4633401]
[1729640852201,20.1,166.98,166.93,34.4633401]
[1729640852609,0.1,166.98,166.93,34.4633401]
[1729640853102,0.1,166.98,166.94,34.4633401]
[1729640853304,0.1,166.99,166.94,34.4633401]
[1729640853830,20.1,167.01,166.96,34.4633401]
[1729640854016,0.1,167.0,166.96,34.4633401]
[1729640854406,0.1,167.01,166.95,34.4633401]
[1729640854624,0.1,167.0,166.95,34.4633401]
[1729640855033,0.1,167.01,166.96,34.4633401]
[1729640855230,0.1,167.02,166.96,34.4633401]
[1729640855531,0.1,167.02,166.97,34.4633401]
[1729640856119,0.1,167.05,167.0,34.4633401]
[1729640856424,16.0041432,167.07,167.0,34.4633401]
[1729640856425,0.1,167.06,167.0,34.4633401]
[1729640856906,0.1,167.06,167.01,34.4633401]
[1729640857310,0.1,167.06,167.0,34.4633401]
[1729640857634,0.1,167.06,167.01,34.4633401]
[1729640857831,0.1,167.13,167.05,34.4633401]
[1729640857832,0.1,167.11,167.05,34.4633401]
[1729640858132,0.1,167.09,167.04,34.4633401]
[1729640858512,0.1,167.05,167.0,34.4633401]
[1729640859034,0.1,167.07,167.02,34.4633401]
[1729640860506,0.1,167.05,167.01,34.4633401]
[1729640860833,0.1,167.05,167.0,34.4633401]
[1729640862712,0.1,167.05,167.01,34.4633401]
[1729640863120,0.1,167.05,167.0,34.4633401]
[1729640863725,20.1,167.05,167.0,34.4633401]
[1729640867323,0.1,167.05,167.0,34.4633401]
[1729640867524,20.1,167.05,166.99,34.4633401]
[1729640867718,20.1,167.05,167.0,34.4633401]
[1729640869139,20.1,167.05,166.92,70.1]
[1729640869140,0.1,166.99,166.95,16.4994]
[1729640873539,6.0884,166.99,166.95,16.4994]
[1729640873832,0.1,166.98,166.91,17.23167005]
[1729640874035,0.1,166.95,166.9,22.7831]
[1729640874430,0.1,166.99,166.93,34.4633401]
[1729640874813,20.1,166.99,166.93,34.4633401]
[1729640875234,20.0,166.99,166.93,34.4633401]
[1729640875422,20.1,166.99,166.92,34.4633401]
[1729640876239,0.1,166.98,166.91,34.4633401]
[1729640877223,0.1,167.0,166.92,58.2402241]
[1729640880423,0.1,167.02,166.94,34.4633401]
[1729640880623,10.12006817,167.06,167.0,34.4633401]
[1729640880838,6.0865,167.05,166.98,34.4633401]
[1729640881047,0.1,167.04,166.98,34.4633401]
[1729640881239,0.1,167.05,166.98,34.4633401]
[1729640881435,0.1,167.04,166.98,34.4633401]
[1729640881622,0.1,167.03,166.97,34.4633401]
[1729640882832,0.1,167.02,166.96,34.4633401]
[1729640883030,0.1,167.02,166.95,34.4633401]
[1729640883941,0.1,167.02,166.96,34.4633401]
[1729640887046,14.9635,167.08,166.97,34.4633401]
[1729640887047,0.1,167.04,166.97,34.4633401]
[1729640887349,6.0873,167.02,166.95,34.4633401]
[1729640888157,0.1,167.02,166.96,34.4633401]
[1729640888335,0.1,167.04,166.98,34.4633401]
[1729640888537,4.35471975,167.03,166.98,34.4633401]
[1729640888835,20.1,167.04,166.98,34.4633401]
[1729640889037,4.35469392,167.03,166.98,34.4633401]
[1729640889229,0.1,167.04,166.98,34.4633401]
[1729640889453,4.46128865,167.03,166.96,34.4633401]
[1729640889632,0.1,167.02,166.96,34.4633401]
[1729640890447,6.0872,167.03,166.97,34.4633401]
[1729640890645,4.46359667,167.02,166.97,34.4633401]
[1729640890837,0.1,167.02,166.97,34.4633401]
[1729640891036,6.0872,167.03,166.97,34.4633401]
[1729640891245,4.36360636,167.02,166.97,34.4633401]
[1729640891449,0.1,167.05,166.98,34.4633401]
[1729640891647,31.44799316,167.04,166.98,34.4633401]
[1729640891848,4.36461275,167.03,166.97,34.4633401]
[1729640892056,4.36461275,167.02,166.97,34.4633401]
[1729640892256,20.1,167.04,166.97,34.4633401]
[1729640892535,4.36463833,167.03,166.97,34.4633401]
[1729640892748,4.36463833,167.02,166.99,34.4633401]
[1729640892949,20.0,167.04,166.99,34.4633401]
[1729640893150,4.3651746,167.03,166.99,34.4633401]
[1729640893353,20.1,167.04,166.98,50.9239401]
[1729640893554,4.3657045,167.03,166.98,50.9239401]
[1729640893749,20.1,167.04,166.98,50.9239401]
[1729640893956,4.3667697,167.03,166.98,50.9239401]
[1729640894238,20.1,167.04,166.98,50.9239401]
[1729640894957,4.36751871,167.03,166.98,50.9239401]
[1729640895158,0.1,167.06,166.99,58.2402241]
[1729640895358,11.35604559,167.05,167.0,34.4633401]
[1729640895551,4.36770984,167.04,167.0,34.4633401]
[1729640895748,20.0,167.06,167.01,34.4633401]
[1729640895952,11.35619949,167.05,167.01,34.4633401]
[1729640896148,4.36776903,167.04,167.01,34.4633401]
[1729640896345,20.0,167.07,167.01,34.4633401]
[1729640896346,20.0,167.07,167.01,22.03627566]
[1729640896541,11.35656693,167.06,167.01,22.03627566]
[1729640896868,4.36791036,167.05,167.01,22.03627566]
[1729640897066,4.36791036,167.04,167.01,22.03627566]
[1729640897252,0.1,167.09,167.01,22.03627566]
[1729640897443,11.3572885,167.08,167.04,22.03627566]
[1729640897650,4.36818788,167.07,167.06,22.03627566]
[1729640898158,4.36818788,167.07,166.99,29.860884]
[1729640898159,6.0854,167.08,167.0,22.03627566]
[1729640898364,11.35853377,167.07,167.01,23.776884]
[1729640898545,6.0854,167.08,167.01,23.776884]
[1729640898890,4.36884494,167.07,167.01,58.21089568]
[1729640899186,6.0854,167.08,167.02,34.43401168]
[1729640899472,4.36848127,167.07,167.02,34.43401168]
[1729640899662,6.0854,167.08,167.02,34.43401168]
[1729640899962,4.36851206,167.07,167.02,34.43401168]
[1729640900175,6.0854,167.08,167.02,34.43401168]
[1729640900470,4.36820315,167.07,167.02,34.43401168]
[1729640900643,6.0854,167.08,167.02,34.43401168]
[1729640900848,4.36827984,167.07,167.02,34.43401168]
[1729640901064,6.0854,167.08,167.02,34.43401168]
[1729640901270,4.36819169,167.07,167.03,34.43401168]
[1729640901568,20.0,167.11,167.04,34.43401168]
[1729640901759,11.35725318,167.1,167.06,34.43401168]
[1729640901961,4.3681743,167.09,167.07,34.43401168]
[1729640902265,6.083,167.14,167.07,34.43401168]
[1729640902443,11.35829381,167.13,167.08,34.43401168]
[1729640902775,6.0841,167.11,167.06,15.7139]
[1729640902945,10.35297454,167.1,167.04,17.21700584]
[1729640903147,10.35297454,167.1,167.02,15.7139]
[1729640903148,4.36823963,167.09,167.03,23.776884]
[1729640903468,4.36823963,167.08,167.03,23.776884]
[1729640903770,6.0844,167.1,167.03,23.776884]
[1729640904072,4.36841631,167.09,167.03,23.776884]
[1729640904251,4.36841631,167.08,167.03,23.776884]
[1729640904452,6.0844,167.1,167.03,23.776884]
[1729640904655,4.36858788,167.09,167.03,23.776884]
[1729640904965,4.36858788,167.08,167.03,23.776884]
[1729640905175,6.0844,167.1,167.03,23.776884]
[1729640905378,4.36870187,167.09,167.03,23.776884]
[1729640905562,4.36870187,167.08,167.02,50.14791168]
[1729640905868,6.0851,167.09,167.02,50.14791168]
[1729640906044,4.36822044,167.08,167.02,50.14791168]
[1729640906239,6.0851,167.09,167.02,32.93090584]
[1729640906445,4.36808511,167.08,167.02,50.14791168]
[1729640906669,6.0851,167.09,167.02,50.14791168]
[1729640906842,4.36807827,167.08,167.02,50.14791168]
[1729640907041,6.0851,167.09,167.02,50.14791168]
[1729640907246,4.36807909,167.08,167.02,50.14791168]
[1729640907558,6.0851,167.09,167.02,50.14791168]
[1729640907752,4.36797078,167.08,167.03,34.43401168]
[1729640907953,14.9583,167.14,167.02,15.7139]
[1729640907954,6.0838,167.12,167.05,34.43401168]
[1729640908163,31.35726571,167.11,167.06,34.43401168]
[1729640908365,11.35726571,167.1,167.06,34.43401168]
[1729640908565,4.36817912,167.09,167.06,34.43401168]
[1729640908766,20.0,167.11,167.06,34.43401168]
[1729640908978,11.3558541,167.1,167.06,34.43401168]
[1729640909269,4.36763619,167.09,167.05,34.43401168]
[1729640909480,20.1,167.11,167.05,34.43401168]
[1729640909769,11.35441731,167.1,167.05,34.43401168]
[1729640909966,4.36708358,167.09,167.07,34.43401168]
[1729640910141,20.0,167.12,167.07,34.43401168]
[1729640910346,11.35367996,167.11,167.07,34.43401168]
[1729640910566,4.36679998,167.1,167.07,34.43401168]
[1729640910848,0.1,167.13,167.08,34.43401168]
[1729640911052,11.35405729,167.12,167.08,34.43401168]
[1729640911255,4.36694511,167.11,167.08,34.43401168]
[1729640911542,0.1,167.15,167.09,34.43401168]
[1729640911761,31.45109399,167.14,167.08,34.43401168]
[1729640911966,11.35109399,167.13,167.08,34.43401168]
[1729640912167,11.45109399,167.13,167.07,34.43401168]
[1729640912347,4.36580538,167.12,167.07,34.43401168]
[1729640912548,6.0831,167.14,167.07,34.43401168]
[1729640912856,11.34964,167.13,167.07,34.43401168]
[1729640913061,4.36526726,167.12,167.07,34.43401168]
[1729640913275,0.1,167.13,167.06,34.43401168]
[1729640913452,4.36368454,167.12,167.06,34.43401168]
[1729640913653,6.0839,167.12,167.05,34.43401168]
[1729640915670,6.0839,167.12,167.06,34.43401168]
[1729640915871,6.0839,167.12,167.05,34.43401168]
[1729640916567,6.0839,167.12,167.06,34.43401168]
[1729640917357,6.0833,167.14,167.06,34.43401168]
[1729640917563,4.36111331,167.13,167.06,34.43401168]
[1729640917881,4.36111331,167.12,167.06,34.43401168]
[1729640918186,6.0833,167.14,167.07,34.43401168]
[1729640918482,4.46075552,167.13,167.07,22.02139122]
[1729640918652,4.36075552,167.12,167.07,22.02139122]
[1729640918854,6.0833,167.13,167.06,22.02139122]
[1729640919168,4.36060385,167.12,167.06,22.02139122]
[1729640919482,6.0833,167.13,167.07,22.02139122]
[1729640919667,4.36063004,167.12,167.07,22.02139122]
[1729640919871,6.0833,167.13,167.07,22.02139122]
[1729640920064,4.36074967,167.12,167.07,22.02139122]
[1729640920259,6.0833,167.13,167.07,22.02139122]
[1729640920473,4.46109745,167.12,167.06,22.02139122]
[1729640920783,4.36109745,167.11,167.06,22.02139122]
[1729640920967,6.0838,167.12,167.06,22.02139122]
[1729640921167,4.36098614,167.11,167.06,22.02139122]
[1729640921392,6.0838,167.12,167.06,22.02139122]
[1729640921564,4.36168273,167.11,167.06,22.02139122]
[1729640921765,6.0838,167.12,167.06,22.02139122]
[1729640922070,4.36164907,167.11,167.03,23.776884]
[1729640922260,6.0837,167.12,167.05,22.02139122]
[1729640922766,4.36224104,167.11,167.05,22.02139122]
[1729640923102,20.1,167.12,167.05,22.02139122]
[1729640923375,4.36224356,167.11,167.06,22.02139122]
[1729640923585,20.1,167.12,167.06,22.02139122]
[1729640923755,4.36318345,167.11,167.06,22.02139122]
[1729640923953,20.1,167.12,167.06,22.02139122]
[1729640924182,4.36310418,167.11,167.06,22.02139122]
[1729640924479,20.1,167.12,167.06,22.02139122]
[1729640924685,4.36404533,167.11,167.06,22.02139122]
[1729640924884,20.1,167.12,167.06,22.02139122]
[1729640925087,4.36407988,167.11,167.06,22.02139122]
[1729640925294,20.1,167.12,167.06,22.02139122]
[1729640925477,4.36517004,167.11,167.06,22.02139122]
[1729640925676,20.1,167.12,167.06,22.02139122]
[1729640925974,4.36517108,167.11,167.06,22.02139122]
[1729640926181,20.1,167.12,167.06,22.02139122]
[1729640926382,4.36523516,167.11,167.06,22.02139122]
[1729640926578,20.1,167.12,167.06,22.02139122]
[1729640926783,4.36527212,167.11,167.06,22.02139122]
[1729640927000,20.1,167.12,167.06,22.02139122]
[1729640927165,4.36527212,167.11,167.06,22.02139122]
[1729640927363,20.1,167.12,167.06,22.02139122]
[1729640927565,4.36544354,167.11,167.07,6.2016]
[1729640927763,6.083,167.14,167.09,22.02139122]
[1729640927971,4.36603707,167.13,167.08,22.02139122]
[1729640928172,4.36603707,167.12,167.08,22.02139122]
[1729640928379,0.1,167.14,167.08,22.02139122]
[1729640928597,4.36607435,167.13,167.08,22.02139122]
[1729640928792,4.36607435,167.12,167.08,22.02139122]
[1729640928972,0.1,167.14,167.08,22.02139122]
[1729640929174,4.36610517,167.13,167.08,22.02139122]
[1729640929490,4.36610517,167.12,167.09,22.02139122]
[1729640929689,0.1,167.13,167.09,22.02139122]
[1729640929882,4.36622325,167.12,167.09,22.02139122]
[1729640930097,0.1,167.13,167.09,22.02139122]
[1729640930297,4.36635879,167.12,167.09,22.02139122]
[1729640930471,0.1,167.13,167.09,22.02139122]
[1729640930669,4.36635911,167.12,167.09,22.02139122]
[1729640930873,0.1,167.13,167.09,22.02139122]
[1729640931092,4.36624886,167.12,167.09,22.02139122]
[1729640931278,0.1,167.13,167.09,22.02139122]
[1729640931473,4.36660334,167.12,167.09,22.02139122]
[1729640931692,0.1,167.13,167.09,22.02139122]
[1729640931883,4.36660334,167.12,167.09,22.02139122]
[1729640932196,0.1,167.13,167.09,22.02139122]
[1729640932371,4.36683009,167.12,167.1,39.206084]
[1729640932571,0.1,167.18,167.11,22.02139122]
[1729640932774,11.3551027,167.17,167.15,22.02139122]
[1729640932989,0.1,167.19,167.12,23.776884]
[1729640932990,4.36803314,167.16,167.12,111.86244888]
[1729640933172,10.00894924,167.22,167.16,23.776884]
[1729640933378,11.35414933,167.21,167.2,22.02139122]
[1729640933692,4.36698051,167.21,167.2,22.02139122]
[1729640933888,0.1,167.25,167.2,22.02139122]
[1729640934078,11.35742198,167.24,167.22,22.02139122]
[1729640934288,4.36823922,167.24,167.22,34.34723822]
[1729640934590,4.36823922,167.23,167.22,34.34723822]
[1729640935380,0.1,167.25,167.22,34.34723822]
[1729640935567,4.36198181,167.24,167.22,34.34723822]
[1729640935772,0.1,167.25,167.22,34.34723822]
[1729640935996,4.36197008,167.24,167.22,34.34723822]
[1729640936295,0.1,167.25,167.22,34.34723822]
[1729640936799,0.1,167.25,167.21,34.34723822]
[1729640936983,0.1,167.25,167.18,15.4292]
[1729640936984,0.1,167.24,167.19,34.34723822]
[1729640937307,0.1,167.23,167.19,34.34723822]
[1729640937467,0.1,167.22,167.16,58.12412222]
[1729640937982,0.1,167.22,167.17,34.34723822]
[1729640939388,0.1,167.22,167.18,34.34723822]
[1729640940692,0.1,167.24,167.19,34.34723822]
[1729640940993,0.1,167.24,167.16,23.776884]
[1729640940994,0.1,167.24,167.2,34.34723822]
[1729640941886,0.1,167.21,167.14,22.0479]
[1729640942094,49.9893,167.29,167.14,22.0479]
[1729640942095,0.1,167.19,167.14,22.0479]
[1729640943618,0.1,167.18,167.11,58.12412222]
[1729640943897,0.1,167.19,167.11,58.12412222]
[1729640944399,0.1,167.19,167.12,34.34723822]
[1729640944598,0.1,167.18,167.13,23.776884]
[1729640946302,0.1,167.18,167.12,23.776884]
[1729640946478,0.1,167.17,167.12,23.776884]